[Event "Titled Tuesday Blitz May 9 Late 2023"]
[White "Al-Saffar, Araz Basim Mohammed S"]
[Black "Seemann, Jakub"]
[WhiteFideId "4801040"]
[BlackFideId "21874697"]
[WhiteElo "2304"]
[BlackElo "2364"]
[Result "0-1"]
[Round "01"]
[TimeControl "180+2"]
[Date "2023.05.09"]
[WhiteClock "0:00:00"]
[BlackClock "0:00:46"]

1. d4 {[%clk 0:03:00]}  Nf6 {[%clk 0:02:59]} 2. Nf3 {[%clk 0:02:59]}  g6 {[%clk 0:02:59]} 3. c4 {[%clk 0:02:57]}  Bg7 {[%clk 0:02:59]} 4. Nc3 {[%clk 0:02:58]}  O-O {[%clk 0:03:00]} 5. e4 {[%clk 0:02:57]}  d6 {[%clk 0:03:00]} 6. Be2 {[%clk 0:02:57]}  e5 {[%clk 0:02:59]} 7. dxe5 {[%clk 0:02:55]}  dxe5 {[%clk 0:02:59]} 8. Qxd8 {[%clk 0:02:51]}  Rxd8 {[%clk 0:03:00]} 9. Bg5 {[%clk 0:02:50]}  Re8 {[%clk 0:03:00]} 10. Nd5 {[%clk 0:02:44]}  Nxd5 {[%clk 0:02:59]} 11. cxd5 {[%clk 0:02:44]}  c6 {[%clk 0:03:00]} 12. Bc4 {[%clk 0:02:43]}  cxd5 {[%clk 0:02:58]} 13. Bxd5 {[%clk 0:02:43]}  Nc6 {[%clk 0:02:59]} 14. O-O {[%clk 0:02:36]}  Bg4 {[%clk 0:02:54]} 15. Bxc6 {[%clk 0:02:30]}  bxc6 {[%clk 0:02:53]} 16. Rfc1 {[%clk 0:02:28]}  Be6 {[%clk 0:02:50]} 17. Rxc6 {[%clk 0:02:23]}  Rec8 {[%clk 0:02:50]} 18. Rd6 {[%clk 0:01:38]}  Rc2 {[%clk 0:02:45]} 19. Rd2 {[%clk 0:01:38]}  Rac8 {[%clk 0:02:43]} 20. b3 {[%clk 0:01:29]}  f5 {[%clk 0:02:36]} 21. Be3 {[%clk 0:01:18]}  a5 {[%clk 0:02:28]} 22. Rad1 {[%clk 0:01:12]}  h6 {[%clk 0:02:25]} 23. Ne1 {[%clk 0:01:02]}  Rxd2 {[%clk 0:02:23]} 24. Rxd2 {[%clk 0:01:01]}  fxe4 {[%clk 0:02:07]} 25. Rc2 {[%clk 0:01:00]}  Rd8 {[%clk 0:02:05]} 26. Kf1 {[%clk 0:00:56]}  Bf8 {[%clk 0:02:02]} 27. Bc5 {[%clk 0:00:55]}  e3 {[%clk 0:01:29]} 28. fxe3 {[%clk 0:00:41]}  Bf5 {[%clk 0:01:28]} 29. Rc1 {[%clk 0:00:36]}  Rc8 {[%clk 0:01:24]} 30. e4 {[%clk 0:00:29]}  Bxe4 {[%clk 0:01:14]} 31. Be3 {[%clk 0:00:28]}  Rd8 {[%clk 0:01:13]} 32. Rc5 {[%clk 0:00:28]}  Bxc5 {[%clk 0:01:11]} 33. Bxc5 {[%clk 0:00:28]}  Rd2 {[%clk 0:01:12]} 34. a3 {[%clk 0:00:27]}  Bd5 {[%clk 0:01:11]} 35. b4 {[%clk 0:00:27]}  Bc4+ {[%clk 0:01:11]} 36. Kg1 {[%clk 0:00:27]}  a4 {[%clk 0:01:11]} 37. Nf3 {[%clk 0:00:25]}  Rd1+ {[%clk 0:01:09]} 38. Kf2 {[%clk 0:00:25]}  e4 {[%clk 0:01:09]} 39. Ne5 {[%clk 0:00:25]}  Bb5 {[%clk 0:01:09]} 40. Nxg6 {[%clk 0:00:25]}  Rd3 {[%clk 0:01:06]} 41. Ne7+ {[%clk 0:00:24]}  Kf7 {[%clk 0:01:06]} 42. Nf5 {[%clk 0:00:24]}  Kg6 {[%clk 0:00:46]} 43. Nd6 {[%clk 0:00:24]}  Bc6 {[%clk 0:00:46]} 44. b5 {[%clk 0:00:24]}  Bd5 {[%clk 0:00:47]} 45. b6 {[%clk 0:00:24]}  Rb3 {[%clk 0:00:45]} 46. Bb4 {[%clk 0:00:06]}  Rxb4 {[%clk 0:00:45]} 47. axb4 {[%clk 0:00:07]}  a3 {[%clk 0:00:46]} 48. b7 {[%clk 0:00:00]}  Bxb7 {[%clk 0:00:46]} 0-1


[Site "https://www.chess.com"]

[Event "Titled Tuesday Blitz May 9 Late 2023"]
[White "Peatman, Carter"]
[Black "Koziorowicz, Michal"]
[WhiteFideId "2096480"]
[BlackFideId "21809194"]
[WhiteElo "2003"]
[BlackElo "2255"]
[Result "0-1"]
[Round "01"]
[TimeControl "180+2"]
[Date "2023.05.09"]
[WhiteClock "0:00:00"]
[BlackClock "0:00:52"]

1. d4 {[%clk 0:03:00]}  f5 {[%clk 0:02:59]} 2. Bf4 {[%clk 0:03:00]}  Nf6 {[%clk 0:02:59]} 3. e3 {[%clk 0:02:59]}  e6 {[%clk 0:03:00]} 4. Nf3 {[%clk 0:03:00]}  Be7 {[%clk 0:03:00]} 5. c4 {[%clk 0:02:55]}  O-O {[%clk 0:03:00]} 6. h3 {[%clk 0:02:54]}  b6 {[%clk 0:02:58]} 7. Nc3 {[%clk 0:02:54]}  Bb7 {[%clk 0:02:58]} 8. Be2 {[%clk 0:02:53]}  Ne4 {[%clk 0:02:54]} 9. O-O {[%clk 0:02:53]}  d6 {[%clk 0:02:42]} 10. Bh2 {[%clk 0:02:52]}  Qe8 {[%clk 0:02:41]} 11. Qc2 {[%clk 0:02:52]}  Nd7 {[%clk 0:02:40]} 12. Nd2 {[%clk 0:02:52]}  Nxd2 {[%clk 0:02:36]} 13. Qxd2 {[%clk 0:02:50]}  Qg6 {[%clk 0:02:37]} 14. f3 {[%clk 0:02:39]}  a6 {[%clk 0:02:36]} 15. Bd3 {[%clk 0:02:12]}  e5 {[%clk 0:02:24]} 16. Qc2 {[%clk 0:01:33]}  Bg5 {[%clk 0:02:16]} 17. Rae1 {[%clk 0:01:32]}  Rae8 {[%clk 0:02:11]} 18. Nd5 {[%clk 0:01:20]}  Bd8 {[%clk 0:02:04]} 19. b4 {[%clk 0:01:13]}  e4 {[%clk 0:01:51]} 20. fxe4 {[%clk 0:01:05]}  fxe4 {[%clk 0:01:52]} 21. Rxf8+ {[%clk 0:01:05]}  Nxf8 {[%clk 0:01:52]} 22. Be2 {[%clk 0:01:04]}  Bc8 {[%clk 0:01:52]} 23. Kh1 {[%clk 0:01:03]}  Ne6 {[%clk 0:01:46]} 24. Bg4 {[%clk 0:00:59]}  Rf8 {[%clk 0:01:31]} 25. Nc3 {[%clk 0:00:53]}  Bh4 {[%clk 0:01:28]} 26. g3 {[%clk 0:00:48]}  Bd8 {[%clk 0:01:09]} 27. Qxe4 {[%clk 0:00:47]}  Qxe4+ {[%clk 0:01:06]} 28. Nxe4 {[%clk 0:00:48]}  Re8 {[%clk 0:01:07]} 29. Nc3 {[%clk 0:00:40]}  Bb7+ {[%clk 0:01:04]} 30. d5 {[%clk 0:00:40]}  Ng5 {[%clk 0:01:04]} 31. h4 {[%clk 0:00:33]}  Nf7 {[%clk 0:01:04]} 32. Be6 {[%clk 0:00:33]}  Bf6 {[%clk 0:01:04]} 33. Ne4 {[%clk 0:00:32]}  Bc8 {[%clk 0:01:04]} 34. Nxf6+ {[%clk 0:00:32]}  gxf6 {[%clk 0:01:04]} 35. Bxc8 {[%clk 0:00:30]}  Rxc8 {[%clk 0:01:05]} 36. Rf1 {[%clk 0:00:31]}  Kg7 {[%clk 0:01:05]} 37. g4 {[%clk 0:00:30]}  Re8 {[%clk 0:01:05]} 38. Bf4 {[%clk 0:00:30]}  Re4 {[%clk 0:01:05]} 39. Rc1 {[%clk 0:00:29]}  Ne5 {[%clk 0:01:04]} 40. c5 {[%clk 0:00:29]}  bxc5 {[%clk 0:01:02]} 41. bxc5 {[%clk 0:00:29]}  Nxg4 {[%clk 0:01:02]} 42. cxd6 {[%clk 0:00:30]}  cxd6 {[%clk 0:01:02]} 43. Rc7+ {[%clk 0:00:27]}  Kg6 {[%clk 0:01:02]} 44. Bxd6 {[%clk 0:00:24]}  Nxe3 {[%clk 0:01:01]} 45. Bf8 {[%clk 0:00:18]}  Nxd5 {[%clk 0:01:01]} 46. Rg7+ {[%clk 0:00:18]}  Kf5 {[%clk 0:01:01]} 47. Rxh7 {[%clk 0:00:17]}  Re2 {[%clk 0:01:01]} 48. Rh5+ {[%clk 0:00:16]}  Ke4 {[%clk 0:01:00]} 49. Bc5 {[%clk 0:00:13]}  Nf4 {[%clk 0:00:59]} 50. Rh8 {[%clk 0:00:13]}  Rc2 {[%clk 0:00:57]} 51. Re8+ {[%clk 0:00:13]}  Kf3 {[%clk 0:00:57]} 52. Bg1 {[%clk 0:00:08]}  Kg4 {[%clk 0:00:56]} 53. Rg8+ {[%clk 0:00:04]}  Kxh4 {[%clk 0:00:53]} 54. Rf8 {[%clk 0:00:04]}  Kg5 {[%clk 0:00:53]} 55. Be3 {[%clk 0:00:03]}  Rc4 {[%clk 0:00:51]} 56. Bxf4+ {[%clk 0:00:04]}  Rxf4 {[%clk 0:00:52]} 57. Kg2 {[%clk 0:00:03]}  Ra4 {[%clk 0:00:53]} 58. Rg8+ {[%clk 0:00:00]}  Kf4 {[%clk 0:00:52]} 0-1


[Site "https://www.chess.com"]

[Event "Titled Tuesday Blitz May 9 Late 2023"]
[White "Manukyan, Sargis A."]
[Black "Fathy, Elameir"]
[WhiteFideId "13303970"]
[BlackFideId "10600396"]
[WhiteElo "2187"]
[BlackElo "2311"]
[Result "0-1"]
[Round "01"]
[TimeControl "180+2"]
[Date "2023.05.09"]
[WhiteClock "0:00:27"]
[BlackClock "0:00:17"]

1. d4 {[%clk 0:02:58]}  d5 {[%clk 0:02:56]} 2. c4 {[%clk 0:02:55]}  e6 {[%clk 0:02:56]} 3. Nc3 {[%clk 0:02:55]}  c6 {[%clk 0:02:56]} 4. e3 {[%clk 0:02:55]}  Nf6 {[%clk 0:02:56]} 5. Nf3 {[%clk 0:02:55]}  Nbd7 {[%clk 0:02:55]} 6. Bd3 {[%clk 0:02:56]}  dxc4 {[%clk 0:02:56]} 7. Bxc4 {[%clk 0:02:56]}  Bd6 {[%clk 0:02:56]} 8. e4 {[%clk 0:02:55]}  b5 {[%clk 0:02:47]} 9. Bd3 {[%clk 0:02:55]}  e5 {[%clk 0:02:47]} 10. O-O {[%clk 0:02:54]}  O-O {[%clk 0:02:45]} 11. a3 {[%clk 0:02:50]}  Qe7 {[%clk 0:02:39]} 12. Bg5 {[%clk 0:02:49]}  h6 {[%clk 0:02:37]} 13. Bh4 {[%clk 0:02:41]}  exd4 {[%clk 0:01:51]} 14. Nxd4 {[%clk 0:02:42]}  Qe5 {[%clk 0:01:52]} 15. Nf3 {[%clk 0:02:37]}  Qh5 {[%clk 0:01:52]} 16. Bg3 {[%clk 0:02:31]}  Bxg3 {[%clk 0:01:49]} 17. hxg3 {[%clk 0:02:29]}  Ng4 {[%clk 0:01:45]} 18. Re1 {[%clk 0:01:18]}  Nde5 {[%clk 0:01:43]} 19. Be2 {[%clk 0:00:48]}  Be6 {[%clk 0:01:13]} 20. Nh4 {[%clk 0:00:31]}  g5 {[%clk 0:01:10]} 21. Bxg4 {[%clk 0:00:26]}  Nxg4 {[%clk 0:01:00]} 22. Nf3 {[%clk 0:00:26]}  Rad8 {[%clk 0:00:51]} 23. Qc2 {[%clk 0:00:25]}  f5 {[%clk 0:00:48]} 24. e5 {[%clk 0:00:20]}  f4 {[%clk 0:00:46]} 25. Ne4 {[%clk 0:00:21]}  Bd5 {[%clk 0:00:39]} 26. gxf4 {[%clk 0:00:18]}  Rxf4 {[%clk 0:00:19]} 27. Ng3 {[%clk 0:00:17]}  Qf7 {[%clk 0:00:20]} 28. Rad1 {[%clk 0:00:13]}  Re8 {[%clk 0:00:17]} 29. Rxd5 {[%clk 0:00:12]}  cxd5 {[%clk 0:00:16]} 30. Qc6 {[%clk 0:00:12]}  Rxf3 {[%clk 0:00:11]} 31. gxf3 {[%clk 0:00:11]}  Nxe5 {[%clk 0:00:11]} 32. Rxe5 {[%clk 0:00:03]}  Rxe5 {[%clk 0:00:11]} 33. Qc8+ {[%clk 0:00:04]}  Kg7 {[%clk 0:00:10]} 34. Qc3 {[%clk 0:00:05]}  Qe6 {[%clk 0:00:04]} 35. f4 {[%clk 0:00:05]}  gxf4 {[%clk 0:00:04]} 36. Nh5+ {[%clk 0:00:05]}  Kh7 {[%clk 0:00:03]} 37. Nxf4 {[%clk 0:00:06]}  Qg4+ {[%clk 0:00:03]} 38. Ng2 {[%clk 0:00:06]}  Qg5 {[%clk 0:00:01]} 39. Qc7+ {[%clk 0:00:06]}  Re7 {[%clk 0:00:01]} 40. Qc2+ {[%clk 0:00:07]}  Qg6 {[%clk 0:00:01]} 41. Qc5 {[%clk 0:00:06]}  Rg7 {[%clk 0:00:02]} 42. Qxd5 {[%clk 0:00:07]}  Qxg2+ {[%clk 0:00:02]} 43. Qxg2 {[%clk 0:00:07]}  Rxg2+ {[%clk 0:00:03]} 44. Kxg2 {[%clk 0:00:08]}  Kg6 {[%clk 0:00:04]} 45. Kg3 {[%clk 0:00:08]}  Kf5 {[%clk 0:00:05]} 46. Kf3 {[%clk 0:00:09]}  h5 {[%clk 0:00:05]} 47. b3 {[%clk 0:00:08]}  a5 {[%clk 0:00:06]} 48. a4 {[%clk 0:00:08]}  b4 {[%clk 0:00:06]} 49. Kg3 {[%clk 0:00:09]}  Ke4 {[%clk 0:00:06]} 50. f3+ {[%clk 0:00:09]}  Kf5 {[%clk 0:00:06]} 51. Kg2 {[%clk 0:00:09]}  Kf4 {[%clk 0:00:06]} 52. Kf2 {[%clk 0:00:10]}  h4 {[%clk 0:00:07]} 53. Ke2 {[%clk 0:00:10]}  h3 {[%clk 0:00:07]} 54. Kf2 {[%clk 0:00:11]}  h2 {[%clk 0:00:08]} 55. Kg2 {[%clk 0:00:11]}  h1=Q+ {[%clk 0:00:08]} 56. Kxh1 {[%clk 0:00:12]}  Kxf3 {[%clk 0:00:09]} 57. Kg1 {[%clk 0:00:13]}  Ke3 {[%clk 0:00:10]} 58. Kf1 {[%clk 0:00:14]}  Kd3 {[%clk 0:00:10]} 59. Ke1 {[%clk 0:00:15]}  Kc3 {[%clk 0:00:11]} 60. Kd1 {[%clk 0:00:16]}  Kxb3 {[%clk 0:00:12]} 61. Kc1 {[%clk 0:00:17]}  Kxa4 {[%clk 0:00:13]} 62. Kb1 {[%clk 0:00:17]}  Kb3 {[%clk 0:00:14]} 63. Ka1 {[%clk 0:00:18]}  a4 {[%clk 0:00:15]} 64. Kb1 {[%clk 0:00:19]}  a3 {[%clk 0:00:15]} 65. Ka1 {[%clk 0:00:20]}  Kc2 {[%clk 0:00:15]} 66. Ka2 {[%clk 0:00:19]}  b3+ {[%clk 0:00:15]} 67. Kxa3 {[%clk 0:00:20]}  b2 {[%clk 0:00:15]} 68. Kb4 {[%clk 0:00:21]}  b1=Q+ {[%clk 0:00:15]} 69. Kc5 {[%clk 0:00:22]}  Qb3 {[%clk 0:00:16]} 70. Kd4 {[%clk 0:00:22]}  Kd2 {[%clk 0:00:15]} 71. Kc5 {[%clk 0:00:23]}  Qf3 {[%clk 0:00:15]} 72. Kd6 {[%clk 0:00:24]}  Qf5 {[%clk 0:00:15]} 73. Kc6 {[%clk 0:00:24]}  Kd3 {[%clk 0:00:16]} 74. Kd6 {[%clk 0:00:24]}  Kc4 {[%clk 0:00:16]} 75. Ke7 {[%clk 0:00:24]}  Qg6 {[%clk 0:00:16]} 76. Kd7 {[%clk 0:00:24]}  Kd5 {[%clk 0:00:17]} 77. Ke7 {[%clk 0:00:25]}  Qh7+ {[%clk 0:00:17]} 78. Kf8 {[%clk 0:00:26]}  Ke6 {[%clk 0:00:17]} 79. Ke8 {[%clk 0:00:27]}  Qh8# {[%clk 0:00:17]} 0-1


[Site "https://www.chess.com"]

[Event "Titled Tuesday Blitz May 9 Late 2023"]
[White "Pavlidou, Ekaterini"]
[Black "Schnaider, Ilan"]
[WhiteFideId "4213262"]
[BlackFideId "169013"]
[WhiteElo "2126"]
[BlackElo "2224"]
[Result "0-1"]
[Round "01"]
[TimeControl "180+2"]
[Date "2023.05.09"]
[WhiteClock "0:00:12"]
[BlackClock "0:00:27"]

1. d4 {[%clk 0:02:53]}  Nf6 {[%clk 0:02:58]} 2. c4 {[%clk 0:02:53]}  g6 {[%clk 0:02:58]} 3. Nc3 {[%clk 0:02:53]}  d5 {[%clk 0:02:58]} 4. Nf3 {[%clk 0:02:51]}  Bg7 {[%clk 0:02:58]} 5. Bg5 {[%clk 0:02:48]}  Ne4 {[%clk 0:02:58]} 6. h4 {[%clk 0:02:47]}  Nxc3 {[%clk 0:02:51]} 7. bxc3 {[%clk 0:02:45]}  c5 {[%clk 0:02:52]} 8. e3 {[%clk 0:02:41]}  Nc6 {[%clk 0:02:48]} 9. cxd5 {[%clk 0:02:39]}  Qxd5 {[%clk 0:02:48]} 10. c4 {[%clk 0:02:39]}  Qd8 {[%clk 0:02:48]} 11. d5 {[%clk 0:02:39]}  Qa5+ {[%clk 0:02:49]} 12. Nd2 {[%clk 0:02:35]}  Nb4 {[%clk 0:02:34]} 13. Rb1 {[%clk 0:02:27]}  Qxa2 {[%clk 0:02:30]} 14. Rxb4 {[%clk 0:02:20]}  cxb4 {[%clk 0:02:29]} 15. Bd3 {[%clk 0:02:16]}  Bc3 {[%clk 0:02:25]} 16. e4 {[%clk 0:02:16]}  b3 {[%clk 0:02:22]} 17. Bb1 {[%clk 0:02:12]}  Qa3 {[%clk 0:02:02]} 18. h5 {[%clk 0:02:11]}  Bd7 {[%clk 0:01:46]} 19. Ke2 {[%clk 0:01:56]}  b2 {[%clk 0:01:38]} 20. Nf1 {[%clk 0:01:39]}  gxh5 {[%clk 0:01:35]} 21. Qd3 {[%clk 0:01:35]}  O-O-O {[%clk 0:01:15]} 22. Ne3 {[%clk 0:01:34]}  Rhg8 {[%clk 0:01:12]} 23. Bxe7 {[%clk 0:01:24]}  Qxe7 {[%clk 0:01:08]} 24. Qxc3 {[%clk 0:01:24]}  Rde8 {[%clk 0:01:01]} 25. c5 {[%clk 0:01:23]}  Bb5+ {[%clk 0:01:00]} 26. Kd2 {[%clk 0:01:18]}  Kb8 {[%clk 0:00:55]} 27. d6 {[%clk 0:01:14]}  Qe6 {[%clk 0:00:50]} 28. Qxb2 {[%clk 0:01:11]}  Bc6 {[%clk 0:00:49]} 29. f3 {[%clk 0:01:07]}  Qh6 {[%clk 0:00:46]} 30. Ke2 {[%clk 0:01:03]}  h4 {[%clk 0:00:43]} 31. Ba2 {[%clk 0:00:59]}  Bxe4 {[%clk 0:00:31]} 32. d7 {[%clk 0:00:19]}  Bxf3+ {[%clk 0:00:30]} 33. Kf1 {[%clk 0:00:16]}  Rxe3 {[%clk 0:00:27]} 34. gxf3 {[%clk 0:00:12]}  Rxf3+ {[%clk 0:00:27]} 0-1


[Site "https://www.chess.com"]

[Event "Titled Tuesday Blitz May 9 Late 2023"]
[White "De Prado Rodriguez, Oscar Bruno"]
[Black "Ankerst, Mihael"]
[WhiteFideId "2203600"]
[BlackFideId "14602369"]
[WhiteElo "2190"]
[BlackElo "2323"]
[Result "0-1"]
[Round "01"]
[TimeControl "180+2"]
[Date "2023.05.09"]
[WhiteClock "0:02:36"]
[BlackClock "0:01:16"]

1. d4 {[%clk 0:02:58]}  Nf6 {[%clk 0:03:00]} 2. Bf4 {[%clk 0:02:58]}  g6 {[%clk 0:03:00]} 3. e3 {[%clk 0:02:59]}  Bg7 {[%clk 0:03:01]} 4. Nc3 {[%clk 0:02:59]}  d6 {[%clk 0:03:01]} 5. h4 {[%clk 0:02:59]}  h5 {[%clk 0:02:59]} 6. Qd2 {[%clk 0:02:59]}  O-O {[%clk 0:02:59]} 7. O-O-O {[%clk 0:02:59]}  a6 {[%clk 0:02:58]} 8. f3 {[%clk 0:03:00]}  b5 {[%clk 0:02:58]} 9. e4 {[%clk 0:03:00]}  Bb7 {[%clk 0:02:45]} 10. Nh3 {[%clk 0:03:00]}  Nbd7 {[%clk 0:02:42]} 11. Bh6 {[%clk 0:02:58]}  b4 {[%clk 0:02:38]} 12. Ne2 {[%clk 0:02:58]}  Nb6 {[%clk 0:02:37]} 13. Bxg7 {[%clk 0:02:51]}  Kxg7 {[%clk 0:02:38]} 14. g4 {[%clk 0:02:52]}  Rh8 {[%clk 0:02:35]} 15. g5 {[%clk 0:02:51]}  Nfd7 {[%clk 0:02:35]} 16. Ng3 {[%clk 0:02:51]}  a5 {[%clk 0:02:32]} 17. f4 {[%clk 0:02:51]}  a4 {[%clk 0:02:23]} 18. Kb1 {[%clk 0:02:50]}  c5 {[%clk 0:02:21]} 19. d5 {[%clk 0:02:47]}  Ba6 {[%clk 0:02:21]} 20. f5 {[%clk 0:02:46]}  Ne5 {[%clk 0:02:14]} 21. fxg6 {[%clk 0:02:43]}  fxg6 {[%clk 0:02:12]} 22. Nf4 {[%clk 0:02:43]}  Bc8 {[%clk 0:01:46]} 23. Bh3 {[%clk 0:02:42]}  Nbc4 {[%clk 0:01:36]} 24. Qe2 {[%clk 0:02:39]}  b3 {[%clk 0:01:30]} 25. cxb3 {[%clk 0:02:39]}  axb3 {[%clk 0:01:30]} 26. axb3 {[%clk 0:02:38]}  Qa5 {[%clk 0:01:25]} 27. Bxc8 {[%clk 0:02:36]}  Qa1+ {[%clk 0:01:15]} 28. Kc2 {[%clk 0:02:36]}  Qxb2# {[%clk 0:01:16]} 0-1


[Site "https://www.chess.com"]

[Event "Titled Tuesday Blitz May 9 Late 2023"]
[White "Zampronha, Wladimir Camilo"]
[Black "Lenaerts, Lennert"]
[WhiteFideId "2103087"]
[BlackFideId "211435"]
[WhiteElo "2176"]
[BlackElo "2334"]
[Result "0-1"]
[Round "01"]
[TimeControl "180+2"]
[Date "2023.05.09"]
[WhiteClock "0:00:06"]
[BlackClock "0:01:13"]

1. e4 {[%clk 0:02:59]}  e5 {[%clk 0:02:59]} 2. Nf3 {[%clk 0:02:58]}  Nc6 {[%clk 0:02:59]} 3. d4 {[%clk 0:02:59]}  exd4 {[%clk 0:03:00]} 4. Nxd4 {[%clk 0:02:59]}  Nf6 {[%clk 0:03:00]} 5. Nxc6 {[%clk 0:02:58]}  bxc6 {[%clk 0:03:01]} 6. e5 {[%clk 0:02:58]}  Qe7 {[%clk 0:03:01]} 7. Qe2 {[%clk 0:02:58]}  Nd5 {[%clk 0:03:02]} 8. c4 {[%clk 0:02:57]}  Ba6 {[%clk 0:03:00]} 9. b3 {[%clk 0:02:56]}  g6 {[%clk 0:03:00]} 10. f4 {[%clk 0:02:56]}  d6 {[%clk 0:03:00]} 11. exd6 {[%clk 0:02:34]}  Qxe2+ {[%clk 0:02:58]} 12. Bxe2 {[%clk 0:02:32]}  Bg7 {[%clk 0:02:57]} 13. cxd5 {[%clk 0:02:24]}  Bxe2 {[%clk 0:02:58]} 14. Kxe2 {[%clk 0:02:15]}  Bxa1 {[%clk 0:02:48]} 15. dxc6 {[%clk 0:02:06]}  cxd6 {[%clk 0:02:47]} 16. Ba3 {[%clk 0:02:05]}  O-O {[%clk 0:02:45]} 17. Nd2 {[%clk 0:01:58]}  Rfe8+ {[%clk 0:02:44]} 18. Kd3 {[%clk 0:01:58]}  Bg7 {[%clk 0:02:40]} 19. Rc1 {[%clk 0:01:47]}  Rac8 {[%clk 0:02:39]} 20. Ne4 {[%clk 0:01:43]}  Red8 {[%clk 0:02:35]} 21. b4 {[%clk 0:01:41]}  d5 {[%clk 0:02:31]} 22. Nd2 {[%clk 0:01:35]}  a6 {[%clk 0:02:31]} 23. Nb3 {[%clk 0:01:28]}  Rd6 {[%clk 0:02:30]} 24. Na5 {[%clk 0:01:28]}  Re6 {[%clk 0:02:25]} 25. Rc2 {[%clk 0:01:11]}  Bf6 {[%clk 0:02:24]} 26. Rc5 {[%clk 0:00:54]}  Bd8 {[%clk 0:02:20]} 27. Rxd5 {[%clk 0:00:53]}  Bxa5 {[%clk 0:02:19]} 28. Rxa5 {[%clk 0:00:54]}  Rexc6 {[%clk 0:02:14]} 29. Bb2 {[%clk 0:00:54]}  Rd8+ {[%clk 0:02:14]} 30. Ke3 {[%clk 0:00:50]}  f6 {[%clk 0:02:00]} 31. Bd4 {[%clk 0:00:47]}  Kf7 {[%clk 0:01:55]} 32. Bc5 {[%clk 0:00:44]}  Re6+ {[%clk 0:01:54]} 33. Kf2 {[%clk 0:00:42]}  Rd2+ {[%clk 0:01:53]} 34. Kf3 {[%clk 0:00:42]}  Rd3+ {[%clk 0:01:53]} 35. Kf2 {[%clk 0:00:42]}  Rd2+ {[%clk 0:01:52]} 36. Kf3 {[%clk 0:00:42]}  h5 {[%clk 0:01:46]} 37. h4 {[%clk 0:00:40]}  Rb2 {[%clk 0:01:44]} 38. a4 {[%clk 0:00:26]}  Rc6 {[%clk 0:01:29]} 39. Kg3 {[%clk 0:00:22]}  Ra2 {[%clk 0:01:26]} 40. Kf3 {[%clk 0:00:21]}  Ke6 {[%clk 0:01:24]} 41. Kg3 {[%clk 0:00:21]}  Kd7 {[%clk 0:01:23]} 42. Kf3 {[%clk 0:00:21]}  Kc8 {[%clk 0:01:22]} 43. f5 {[%clk 0:00:16]}  gxf5 {[%clk 0:01:21]} 44. Kf4 {[%clk 0:00:17]}  Rxg2 {[%clk 0:01:21]} 45. Kxf5 {[%clk 0:00:17]}  Rg4 {[%clk 0:01:21]} 46. Be7 {[%clk 0:00:14]}  Rxh4 {[%clk 0:01:19]} 47. Bxf6 {[%clk 0:00:14]}  Rxb4 {[%clk 0:01:19]} 48. Rd5 {[%clk 0:00:13]}  Rxa4 {[%clk 0:01:18]} 49. Bg5 {[%clk 0:00:09]}  Rac4 {[%clk 0:01:15]} 50. Rd8+ {[%clk 0:00:09]}  Kc7 {[%clk 0:01:16]} 51. Rh8 {[%clk 0:00:08]}  R6c5+ {[%clk 0:01:14]} 52. Kg6 {[%clk 0:00:07]}  Rg4 {[%clk 0:01:14]} 53. Rxh5 {[%clk 0:00:06]}  a5 {[%clk 0:01:14]} 54. Kf6 {[%clk 0:00:06]}  Rgxg5 {[%clk 0:01:11]} 55. Rxg5 {[%clk 0:00:06]}  Rxg5 {[%clk 0:01:11]} 56. Kxg5 {[%clk 0:00:07]}  a4 {[%clk 0:01:12]} 57. Kf4 {[%clk 0:00:08]}  a3 {[%clk 0:01:12]} 58. Ke3 {[%clk 0:00:06]}  a2 {[%clk 0:01:13]} 0-1


[Site "https://www.chess.com"]

[Event "Titled Tuesday Blitz May 9 Late 2023"]
[White "Taichman, Ori"]
[Black "FuenfgegenWilly"]
[WhiteFideId "2804069"]
[WhiteElo "2237"]
[BlackElo "2317"]
[Result "1-0"]
[Round "01"]
[TimeControl "180+2"]
[Date "2023.05.09"]
[WhiteClock "0:00:51"]
[BlackClock "0:00:17"]

1. e4 {[%clk 0:02:58]}  e5 {[%clk 0:02:59]} 2. d4 {[%clk 0:02:58]}  exd4 {[%clk 0:02:59]} 3. Qxd4 {[%clk 0:02:59]}  Nc6 {[%clk 0:02:59]} 4. Qe3 {[%clk 0:02:57]}  Nf6 {[%clk 0:03:00]} 5. Nc3 {[%clk 0:02:57]}  Bb4 {[%clk 0:02:59]} 6. Bd2 {[%clk 0:02:58]}  O-O {[%clk 0:02:59]} 7. O-O-O {[%clk 0:02:58]}  Re8 {[%clk 0:02:59]} 8. Qg3 {[%clk 0:02:59]}  Nxe4 {[%clk 0:02:53]} 9. Nxe4 {[%clk 0:02:56]}  Rxe4 {[%clk 0:02:52]} 10. c3 {[%clk 0:02:56]}  Bf8 {[%clk 0:02:48]} 11. Bd3 {[%clk 0:02:55]}  Re8 {[%clk 0:02:45]} 12. Nf3 {[%clk 0:02:54]}  d5 {[%clk 0:02:36]} 13. Ng5 {[%clk 0:02:51]}  g6 {[%clk 0:02:28]} 14. h4 {[%clk 0:02:51]}  Bd6 {[%clk 0:02:20]} 15. f4 {[%clk 0:02:43]}  Qf6 {[%clk 0:02:04]} 16. h5 {[%clk 0:02:36]}  Bf5 {[%clk 0:02:01]} 17. Nxh7 {[%clk 0:01:50]}  Kxh7 {[%clk 0:01:43]} 18. hxg6+ {[%clk 0:01:50]}  Kg8 {[%clk 0:01:44]} 19. g7 {[%clk 0:01:28]}  Bg6 {[%clk 0:00:50]} 20. Qh3 {[%clk 0:01:27]}  Kxg7 {[%clk 0:00:32]} 21. Qh6+ {[%clk 0:01:24]}  Kg8 {[%clk 0:00:32]} 22. f5 {[%clk 0:01:17]}  Ne5 {[%clk 0:00:32]} 23. fxg6 {[%clk 0:00:51]}  Nxd3+ {[%clk 0:00:32]} 24. Kb1 {[%clk 0:00:51]}  fxg6 {[%clk 0:00:25]} 25. Qh7+ {[%clk 0:00:50]}  Kf8 {[%clk 0:00:17]} 26. Bh6+ {[%clk 0:00:51]} 1-0


[Site "https://www.chess.com"]